Cogmind - Beta 13 @@@ ROGUE MODE // 2024.04.25 @ 20:15:23 Player: Phosphorus Result: Destroyed by G-50 Soldier with Heavy Laser Performance ------------- Evolutions (5) 2500 Regions Visited (20) 4000 Robots Destroyed (321) 1605 Value Destroyed (16044) 16044 Prototype IDs (36) 720 Alien Tech Used (0) 0 Bonus (7787) 7787 TOTAL SCORE: 32656 Bonus ------- High Alert Combat Kills 3487 Follower Combat Kills 479 Entered Garrisons 1000 Used RIF Installer 3000 Aligned with FarCom 300 Friendly Fire -479 Cogmind --------- Core Integrity 0/1000 Matter 197/300 Energy 98/100 System Corruption 22% Temperature Cool (9) Movement Core (50) Location -5/Extension Parts ------- > --- POWER (2) -------- (None) > --- PROPULSION (4) --- (None) > --- UTILITY (9) ------ (None) > --- WEAPON (2) ------- (None) > --- INVENTORY (5) ---- Superbattery (1500) Layered Heavy Armor Plating Advanced Drone Bay (2/2) Peak State ------------ > --- POWER ------------ Micro Fission Core Antimatter Reactor > --- PROPULSION ------- Heavy Treads Heavy Treads > --- UTILITY ---------- Cargo Storage Unit 0b10 Alert Chip Improved Transmission Jammer Layered Heavy Armor Plating Relay Coupler [NC] Advanced Drone Bay > --- WEAPON ----------- Heavy Mass Driver > --- INVENTORY -------- Enhanced Fission Core Heavy Treads Heavy Treads Improved Cooling System Coolant Injector Superbattery High-capacity Matter Pod Launcher Loader Damper Plating Advanced Shield Generator Improved Hacking Suite Relay Coupler [Sentry] Long-range Tractor Beam Improved EM Pulse Cannon Long-range Proton Cannon Heavy Ion Cannon Advanced Plasma Cannon Heavy Mass Driver Tesla Bomb Launcher Heavy Missile Launcher Heavy Missile Launcher Improved Remote Datajack Improved Plasma Cutter [Rating: 104] Favorites ----------- Power Deuterium Engine Engine Deuterium Engine Power Core Light Nuclear Core Reactor Antimatter Reactor Propulsion Light Treads Treads Light Treads Utility Huge Storage Unit Device Advanced Cooling System Storage Huge Storage Unit Processor 0b10 Alert Chip Hackware Relay Coupler [NC] Protection Medium Reactive Plating Weapon Advanced Beam Cannon Energy Gun Heavy Particle Gun Energy Cannon Advanced Beam Cannon Ballistic Gun Shotgun Ballistic Cannon Enhanced Gauss Cannon Launcher Heavy Missile Launcher Special Weapon Improved Remote Datajack Impact Weapon Maul Special Melee Weapon Datajack Build | -11 -10 -10 -10 -9 -8 -8 -8 -8 -8 -8 -7 -7 -7 -7 -6 -6 -5 -5 -5 -5 ------- Run | Yrd Mat Min Exi Min Mat Gar Mat Gar Mat Gar Fac Was Fac Gar Fac Gar Fac Was Fac Ext Slots Evolved 10 | . . . . . 4 . . . . . 2 . . . 2 . 2 . . . Power 1 | . . . . . . . . . . . 1 . . . . . . . . . Propulsion 2 | . . . . . 2 . . . . . . . . . . . . . . . Utility 7 | . . . . . 2 . . . . . 1 . . . 2 . 2 . . . Weapon . | . . . . . . . . . . . . . . . . . . . . . Parts Attached 462 | 7 8 2 . 5 30 32 7 48 . 22 18 17 29 40 52 40 9 17 79 . Power 35 | 1 . . . 1 2 1 . . . 2 5 3 1 2 5 5 . 3 4 . Engine 15 | 1 . . . 1 2 1 . . . 2 2 . . 1 . 4 . 1 . . Core 13 | . . . . . . . . . . . 3 1 . 1 5 1 . . 2 . Reactor 7 | . . . . . . . . . . . . 2 1 . . . . 2 2 . Propulsion 52 | 2 . . . 1 6 8 1 11 . 3 2 2 . 3 2 3 1 2 5 . Treads 52 | 2 . . . 1 6 8 1 11 . 3 2 2 . 3 2 3 1 2 5 . Leg . | . . . . . . . . . . . . . . . . . . . . . Wheel . | . . . . . . . . . . . . . . . . . . . . . Hover . | . . . . . . . . . . . . . . . . . . . . . Flight . | . . . . . . . . . . . . . . . . . . . . . Utility 186 | 2 3 . . 1 6 9 4 14 . 6 3 6 14 14 29 16 5 7 47 . Device 101 | 1 . . . . 3 3 1 4 . 2 2 3 6 9 17 6 2 6 36 . Storage 5 | 1 1 . . . . . . . . . . . 2 . 1 . . . . . Processor 5 | . . . . . . . . 1 . . . . 1 . 1 . . . 2 . Hackware 23 | . . . . . . . 2 2 . 3 . 1 3 1 5 3 2 . 1 . Protection 52 | . 2 . . 1 3 6 1 7 . 1 1 2 2 4 5 7 1 1 8 . Artifact . | . . . . . . . . . . . . . . . . . . . . . Weapon 189 | 2 5 2 . 2 16 14 2 23 . 11 8 6 14 21 16 16 3 5 23 . Energy Gun 3 | . . . . . 3 . . . . . . . . . . . . . . . Energy Cannon 54 | . . . . . 7 6 1 5 . 2 1 . 2 6 10 7 . 2 5 . Ballistic Gun 22 | 2 4 1 . 1 2 1 . . . . 4 3 4 . . . . . . . Ballistic Cannon 35 | . . . . . . 1 . 6 . 4 2 . 3 6 . 2 2 1 8 . Launcher 36 | . 1 1 . 1 2 4 . 6 . 3 . . . 5 2 3 . . 8 . Special Weapon 32 | . . . . . 2 . 1 2 . 1 1 3 5 4 4 4 1 2 2 . Impact Weapon 6 | . . . . . . 1 . 4 . 1 . . . . . . . . . . Slashing Weapon . | . . . . . . . . . . . . . . . . . . . . . Piercing Weapon . | . . . . . . . . . . . . . . . . . . . . . Special Melee Weapon 1 | . . . . . . 1 . . . . . . . . . . . . . . Unidentified Prototypes 8 | . . . . . 5 . . . . . . . . 2 . . . . 1 . Corrupted Parts 1 | . . . . . . . . . . . . . . . . . . 1 . . System Corruption 3 | . . . . . . . . . . . . . . . . . . 3 . . Parts Lost 56 | . . . . 1 . 7 . 2 . 4 5 . 1 6 5 11 3 . 11 . Power 12 | . . . . 1 . 1 . . . 1 1 . . 2 . 3 . . 3 . Propulsion 15 | . . . . . . 3 . . . 3 1 . . 1 2 2 1 . 2 . Utility 23 | . . . . . . 2 . 2 . . 1 . . 2 3 6 2 . 5 . Weapon 6 | . . . . . . 1 . . . . 2 . 1 1 . . . . 1 . Highest Loss Streak 5 | . . . . 1 . 4 . 1 . 1 2 . 1 5 3 5 2 . 4 . To Critical Strikes 1 | . . . . . . 1 . . . . . . . . . . . . . . Average Slot Usage (%) 89 | . 100 100 100 99 98 98 98 99 100 94 83 70 81 71 78 76 79 69 62 . Engine 7 | . 14 14 14 13 9 8 9 9 9 8 4 . . 1 5 7 11 4 . . Core 1 | . . . . . . . . . . . 6 8 . 5 6 4 . . 2 . Reactor 2 | . . . . . . . . . . . . 6 14 3 . . . 4 6 . Treads 25 | . 28 28 28 28 36 35 36 36 36 34 26 17 15 14 13 12 16 12 10 . Device 10 | . . . . . 13 11 17 10 18 7 16 7 17 11 18 14 14 12 15 . Storage 8 | . 14 14 14 14 9 9 9 9 9 9 7 7 7 7 6 6 5 5 4 . Processor 1 | . . . . . . . . . . . . . . . 6 6 5 5 5 . Hackware 1 | . . . . . . . . . . 7 . 2 3 2 1 3 11 3 4 . Protection 10 | . 13 14 14 13 11 14 8 15 9 9 6 5 6 7 4 7 5 4 2 . Energy Cannon 5 | . . . . . 12 14 8 7 . 2 1 . . 10 11 8 . 8 . . Ballistic Gun 7 | . 28 27 28 27 3 1 . . . . 8 14 8 . . . . . . . Ballistic Cannon 3 | . . . . . . 1 9 8 18 13 3 . 2 4 . 1 4 . 4 . Naked Turns 100 | . . . . . . . . . . . . . . . . . . . 69 31 Heaviest Build 239 | 13 98 98 98 98 114 126 125 134 126 126 133 169 212 219 194 199 193 237 239 . Greatest Support 150 | 40 40 40 40 43 85 83 83 87 87 87 95 140 140 150 150 150 115 140 140 3 Greatest Overweight (x) 3 | . 2 2 2 2 1 1 1 1 1 2 2 2 1 1 1 2 3 3 2 . Average Overweight (x) 1 | . 1 2 2 2 1 1 1 1 1 1 1 1 . 1 1 1 2 1 . . Largest Inventory Capacity 30 | 8 25 25 25 25 25 25 25 25 25 25 25 25 30 30 30 30 30 30 30 5 Average Capacity 26 | 6 22 25 25 25 25 25 25 25 25 25 25 25 26 30 30 30 30 30 29 5 Most Carried 30 | 5 25 25 25 25 25 25 25 25 24 25 25 25 30 30 30 30 30 30 30 5 Average Carried 25 | 2 15 24 23 24 24 24 24 24 24 24 23 24 25 29 28 26 26 28 27 5 Final Capacity 30 | 8 25 25 25 25 25 25 25 25 25 25 25 25 30 30 30 30 30 30 5 5 Final Carried 30 | 5 24 25 24 25 25 25 24 24 24 24 25 25 30 30 21 30 25 30 5 5 Class Distribution -------------------- 38% | Bothacker-Mutant 33% | Mutant 17% | Hauler-Mutant 7% | Scavenger-Mutant 3% | Botlord-Mutant Dominant Class ---------------- Mutant | -10/Materials Mutant | -10/Mines Mutant | -10/Exiles Mutant | -9/Mines Mutant | -8/Materials Mutant | -8/Garrison Mutant | -8/Materials Bothacker-Mutant | -8/Garrison Bothacker-Mutant | -8/Materials Bothacker-Mutant | -8/Garrison Bothacker-Mutant | -7/Factory Bothacker-Mutant | -7/Waste Bothacker-Mutant | -7/Factory Hauler-Mutant | -7/Garrison Hauler-Mutant | -6/Factory Hauler-Mutant | -6/Garrison Botlord-Mutant | -5/Factory Bothacker-Mutant | -5/Waste Hauler-Mutant | -5/Factory Mutant | -5/Extension Resources | -11 -10 -10 -10 -9 -8 -8 -8 -8 -8 -8 -7 -7 -7 -7 -6 -6 -5 -5 -5 -5 ----------- Run | Yrd Mat Min Exi Min Mat Gar Mat Gar Mat Gar Fac Was Fac Gar Fac Gar Fac Was Fac Ext Matter Collected 13203 | 247 218 114 . 182 431 566 . 1642 . 950 510 906 1728 1126 786 859 31 681 2226 . Remotely 1515 | . . . . . . . . . . . . . . 347 190 87 21 . 870 . Salvage Created 15202 | 80 323 17 . 188 707 1240 . 759 . 1253 840 1218 1279 1470 1072 1017 . 1564 2175 . Parts 660 | 8 22 5 . 8 37 47 . 64 . 51 60 37 75 62 35 46 . 30 73 . Haulers Intercepted 14 | . . . . . 4 . . . . . 3 . 2 . 1 . . . 4 . Recyclers Shooed 14 | . . . . . . . . . . . 2 . 3 . 1 . . . 8 . Parts Field Recycled . | . . . . . . . . . . . . . . . . . . . . . Retrieved Matter . | . . . . . . . . . . . . . . . . . . . . . Parts Self-Destructed . | . . . . . . . . . . . . . . . . . . . . . Prevented . | . . . . . . . . . . . . . . . . . . . . . Kills | -11 -10 -10 -10 -9 -8 -8 -8 -8 -8 -8 -7 -7 -7 -7 -6 -6 -5 -5 -5 -5 ------- Run | Yrd Mat Min Exi Min Mat Gar Mat Gar Mat Gar Fac Was Fac Gar Fac Gar Fac Was Fac Ext Combat Hostiles Destroyed 269 | . 14 3 . 5 9 32 . 34 . 28 7 4 22 26 13 26 1 6 39 . Guns 48 | . 11 . . 3 5 1 . . . . 7 4 17 . . . . . . . Cannons 107 | . . . . . 4 17 . 12 . 14 . . 4 11 9 17 1 5 13 . AOE 101 | . 3 3 . 2 . 12 . 22 . 13 . . 1 13 1 6 . . 25 . Classes Destroyed 21 | 2 3 . . 1 3 3 . 1 . 5 1 1 . . . . . . 1 . Worker 7 | . . . . . 1 . . . . . 3 . . . . . . . 3 . Builder 7 | . . . . . . . . . . . 3 . . . 1 . . . 3 . Tunneler 3 | 1 . . . . . . . . . . . . . . 1 . . . 1 . Hauler 14 | . . . . . 4 . . . . . 3 . 2 . 1 . . . 4 . Recycler 14 | 1 . . . . . . . . . . 3 . 1 . 2 . . . 7 . Operator 3 | . . . . . 1 . . . . . . . . . 1 . . . 1 . Watcher 3 | . 1 . . . . . . 1 . . . . . . . . . . 1 . Swarmer 75 | . 9 3 . . . 3 . 18 . 11 . . 2 13 . 11 . . 5 . Cutter 2 | . . . . . . 2 . . . . . . . . . . . . . . Grunt 80 | . 5 . . 3 4 10 . 1 . 5 6 . 8 6 8 4 . . 20 . Brawler 2 | . . . . . . . . . . 1 . . . 1 . . . . . . Duelist 3 | . . . . . . . . . . 1 . . 1 1 . . . . . . Protector 1 | . . . . . . . . . . 1 . . . . . . . . . . Sentry 48 | . . . . 2 5 12 . 7 . 6 . . 2 3 . 10 . . 1 . Demolisher 2 | . . . . . . . . . . 1 . . . 1 . . . . . . Specialist 3 | . . . . . . . . . . 2 . . . 1 . . . . . . Hunter 17 | . . . . . . 4 . 5 . . . . 1 . 2 . 1 . 4 . Programmer 22 | . . . . . . . . 3 . . 1 . 8 . 3 . . . 7 . Heavy 2 | . . . . . . . . . . . . . . . . . . . 2 . Behemoth 2 | . . . . . . 1 . . . . . . . . . 1 . . . . Compactor 10 | . . . . . . . . . . . . 4 . . . . . 6 . . Thug 1 | . . . . . . . . . . . . . . 1 . . . . . . Best Kill Streak 19 | 2 3 3 . 3 3 4 . 8 . 6 5 1 4 5 7 4 1 1 19 . Combat Bots Only 8 | . 3 3 . 3 3 4 . 8 . 6 3 1 3 5 4 4 1 1 7 . Max Kills in Single Turn 5 | 1 2 2 . 1 2 3 . 2 . 4 2 1 2 3 2 2 1 1 5 . Gunslinging . | . . . . . . . . . . . . . . . . . . . . . Exploded 5 | . 2 2 . 1 . 3 . 2 . 4 . . 1 2 1 2 . . 5 . Melee . | . . . . . . . . . . . . . . . . . . . . . Uniques/NPCs Destroyed . | . . . . . . . . . . . . . . . . . . . . . Combat | -11 -10 -10 -10 -9 -8 -8 -8 -8 -8 -8 -7 -7 -7 -7 -6 -6 -5 -5 -5 -5 -------- Run | Yrd Mat Min Exi Min Mat Gar Mat Gar Mat Gar Fac Was Fac Gar Fac Gar Fac Was Fac Ext Hostile Shots Fired 1980 | . 46 6 . 17 39 244 . 132 . 118 44 . 230 199 179 330 68 . 314 14 Missed 538 | . 13 4 . 5 11 53 . 33 . 38 13 . 57 61 40 105 16 . 84 5 Damage Taken 20801 | . 296 24 . 196 450 2285 . 1209 . 1205 863 . 1315 1896 2043 2516 939 . 5395 169 Core 1994 | . 9 4 . 15 30 166 . 43 . 148 30 . 104 122 95 223 103 . 733 169 Absorbed by Shields 2174 | . . . . . 57 119 . 4 . 333 119 . 503 291 278 188 . . 282 . Reduced by Siege Mode 739 | . . . . . . . . . . . . . 63 110 159 138 . . 269 . Ignored by Resistances 1035 | . . . . . . 368 . 178 . . . . 191 79 . . . . 219 . Core Remaining (%) 68 | 100 . . . 88 . . . . . 29 . . . 63 . 62 . . . . Volleys Fired 1069 | 3 55 2 . 8 42 106 9 137 . 61 49 48 99 100 79 89 16 52 114 . Largest 2 | 2 2 1 . 2 2 2 2 2 . 2 2 2 2 2 2 2 1 2 2 . Hottest 179 | 40 46 30 . 46 136 136 125 125 . 125 125 70 122 130 170 170 75 130 179 . Shots Fired 1627 | 6 107 2 . 14 78 175 11 164 . 87 95 78 177 172 129 128 16 75 113 . Gun 439 | 6 105 . . 12 26 7 . . . . 76 69 138 . . . . . . . Cannon 995 | . . . . . 46 155 6 136 . 74 18 . 30 151 114 111 14 69 71 . Launcher 118 | . 2 2 . 2 . 13 . 23 . 10 . . . 17 4 6 . . 39 . Special 75 | . . . . . 6 . 5 5 . 3 1 9 9 4 11 11 2 6 3 . Kinetic 726 | 6 105 . . 12 17 8 2 65 . 55 93 69 161 34 . 18 14 2 65 . Thermal 695 | . . . . . 61 154 4 71 . 19 1 . 3 118 101 93 . 67 3 . Explosive 114 | . 2 2 . 2 . 13 . 23 . 10 . . . 17 4 6 . . 35 . Electromagnetic 24 | . . . . . . . . . . . . . 4 . 13 . . . 7 . Robot Hit Streak 35 | 4 7 . . 6 7 17 6 6 . 9 9 23 13 35 13 20 11 15 19 . Robot Miss Streak 6 | 1 6 . . 1 5 3 1 2 . 3 3 2 4 3 5 2 1 2 2 . Penetration Max 2 | . . . . . . . . . . . 1 1 2 . . . . . . . Secondary Targets 4 | . 2 . . . . . . . . . 1 . 1 . . . . . . . Max Gunslinging Chain 1 | . 1 . . . . . . . . . 1 . 1 . . . . . . . Shots Hit Robots 1054 | 5 70 . . 11 43 110 6 43 . 75 62 66 127 114 85 89 11 59 78 . Core Hits 555 | 4 26 2 . 8 23 55 . 47 . 37 27 10 57 64 26 35 2 15 117 . Critical Kills 40 | . . . . . . 1 . . . . 12 4 16 4 2 . . 1 . . Critical Parts Destroyed 42 | . . . . . . 2 . . . 5 12 3 20 . . . . . . . Critical Strikes 123 | . . . . . . 4 . 2 . 14 26 21 36 6 2 2 1 1 8 . Meltdown 8 | . . . . . . 1 . . . . . . . 4 2 . . 1 . . Destroy 82 | . . . . . . . . . . . 25 21 36 . . . . . . . Blast 25 | . . . . . . . . 2 . 9 1 . . 2 . 2 1 . 8 . Smash 8 | . . . . . . 3 . . . 5 . . . . . . . . . . Melee Attacks 88 | . . . . . . 17 . 43 . 28 . . . . . . . . . . Impact 85 | . . . . . . 14 . 43 . 28 . . . . . . . . . . Slashing . | . . . . . . . . . . . . . . . . . . . . . Piercing . | . . . . . . . . . . . . . . . . . . . . . Sneak Attacks 8 | . . . . . . 3 . . . 5 . . . . . . . . . . Combat Hostiles 1 | . . . . . . . . . . 1 . . . . . . . . . . Follow-up Attacks . | . . . . . . . . . . . . . . . . . . . . . Damage Inflicted 37051 | 39 840 125 . 352 884 3315 46 2995 . 3436 777 495 1542 4418 2942 3485 421 1643 9296 . Guns 3223 | 38 653 . . 170 374 56 . . . . 466 495 971 . . . . . . . Cannons 19133 | . . . . . 489 1787 30 922 . 1038 284 . 524 3050 2527 2751 421 1643 3667 . Explosions 12258 | . 182 125 . 178 . 955 . 1955 . 735 . . 36 1359 389 734 . . 5610 . Melee 2284 | . . . . . . 517 . 118 . 1649 . . . . . . . . . . Ramming 153 | 1 5 . . 4 21 . 16 . . 14 27 . 11 9 26 . . . 19 . Kinetic 10471 | 38 653 . . 170 243 56 30 479 . 772 729 495 1366 604 . 707 421 151 3557 . Thermal 11751 | . . . . . 620 1787 . 443 . 266 21 . 69 2446 2098 2044 . 1492 465 . Explosive 11678 | . 182 125 . 178 . 955 . 1955 . 735 . . . 1359 389 734 . . 5066 . Electromagnetic 714 | . . . . . . . . . . . . . 96 . 429 . . . 189 . Impact 2284 | . . . . . . 517 . 118 . 1649 . . . . . . . . . . Slashing . | . . . . . . . . . . . . . . . . . . . . . Piercing . | . . . . . . . . . . . . . . . . . . . . . Highest Corruption 29 | . . . . . . . . 2 2 2 2 16 25 29 7 7 . 18 22 22 Average Corruption 12 | . . . . . . . . 1 2 2 1 13 19 28 4 7 . 14 20 22 Corruption Purged . | . . . . . . . . . . . . . . . . . . . . . Corruption Blocked . | . . . . . . . . . . . . . . . . . . . . . Effects 535 | . . . . . . . . 26 1 19 3 31 146 98 19 50 . 26 114 2 Message Errors 126 | . . . . . . . . 6 . 7 . 5 30 28 7 16 . 6 21 . Matter Fused 123 | . . . . . . . . 4 1 3 1 4 38 18 3 16 . 4 31 . Heat Flow Errors 58 | . . . . . . . . 1 . 1 . 3 16 14 3 3 . 3 13 1 Energy Discharges 54 | . . . . . . . . 3 . 3 . 2 21 6 . 4 . 2 13 . Parts Rejected 4 | . . . . . . . . . . . . . 1 1 . . . 2 . . Parts Fused 5 | . . . . . . . . . . . . . 3 . . 1 . . 1 . Data Loss (minor) 69 | . . . . . . . . 7 . 2 2 6 15 11 4 4 . 3 14 1 Data Loss (major) 25 | . . . . . . . . 1 . 2 . 1 5 7 . 3 . 1 5 . Misfires 19 | . . . . . . . . 1 . 1 . . 5 4 1 2 . 2 3 . Alerts 17 | . . . . . . . . 2 . . . 2 6 1 1 1 . 1 3 . Misdirections 8 | . . . . . . . . . . . . 1 1 . . . . 1 5 . Weapon Failures 27 | . . . . . . . . 1 . . . 7 5 8 . . . 1 5 . Overload Shots . | . . . . . . . . . . . . . . . . . . . . . Overflow Damage 1662 | . . 10 . . . 74 . 190 . 417 . . . 39 103 121 54 11 643 . Projectiles 778 | . . . . . . . . 57 . 2 . . . 10 67 41 54 11 536 . Explosions 329 | . . 10 . . . . . 67 . . . . . 29 36 80 . . 107 . Melee 555 | . . . . . . 74 . 66 . 415 . . . . . . . . . . Knockbacks 39 | . . . . . . . . 5 . 7 2 . 3 4 . . 6 . 12 . Impact 1 | . . . . . . . . . . 1 . . . . . . . . . . Kinetic 34 | . . . . . . . . 3 . 5 2 . 3 3 . . 6 . 12 . Secondary 4 | . . . . . . . . 2 . 1 . . . 1 . . . . . . Self-Inflicted Damage 1693 | . . 8 . 31 . 173 . 168 . 121 . . 35 236 76 199 . . 646 . Shots 51 | . . 1 . 1 . 5 . 6 . 5 . . 1 9 1 4 . . 18 . Rammed 19 | 1 2 1 . 1 2 . 1 . . 2 2 . 1 1 2 . . . 3 . Targets Rammed 20 | 1 2 1 . 1 2 . 1 . . 2 3 . 1 1 2 . . . 3 . Kicked . | . . . . . . . . . . . . . . . . . . . . . Crushed 1 | . . . . . . . . . . . 1 . . . . . . . . . Highest Temperature 547 | . 25 . . 22 120 261 160 361 . 547 81 302 227 384 409 244 8 233 274 201 Average Temperature 78 | . 7 . . 12 39 44 74 89 . 99 33 88 77 86 105 67 4 82 105 108 Received Heat Transfer 4386 | . 84 . . 111 164 721 . 63 . 316 116 . 316 445 443 456 . . 1058 93 Effects 9 | . . . . . . . . 2 . 3 . . . . 2 1 . . 1 . Shutdowns 2 | . . . . . . . . . . 1 . . . . 1 . . . . . Energy Bleed 2 | . . . . . . . . . . . . . . . . 1 . . 1 . Interference 2 | . . . . . . . . 2 . . . . . . . . . . . . Short Circuit 1 | . . . . . . . . . . 1 . . . . . . . . . . Damage (minor) 1 | . . . . . . . . . . . . . . . 1 . . . . . Damage (core) 1 | . . . . . . . . . . 1 . . . . . . . . . . Siege Activations 45 | . . . . . . . . . . . . 1 7 7 7 9 . . 14 . Total Turns 773 | . . . . . . . . . . . . 16 173 113 146 83 . . 242 . Longest Duration 88 | . . . . . . . . . . . . 16 68 39 36 16 . . 88 . Robots Corrupted 3 | . . . . . . . . . . . . . . . 2 . . . 1 . Combat Hostiles 3 | . . . . . . . . . . . . . . . 2 . . . 1 . Parts Fried 17 | . . . . . . . . 3 . 7 . . 1 . 6 . . . . . Impact Corruptions 17 | . . . . . . 3 . 2 . 12 . . . . . . . . . . Robots Melted 11 | . . . . . . 1 . . . . . . . 4 2 3 . 1 . . Combat Hostiles 8 | . . . . . . 1 . . . . . . . 2 1 3 . 1 . . Parts Melted 38 | . . . . . 2 14 . . . . . . . 7 4 8 . 3 . . Heat Transferred 16137 | . . . . . 1147 3219 . 740 . 481 37 . 87 3310 2331 2400 . 2035 350 . Parts Sabotaged . | . . . . . . . . . . . . . . . . . . . . . Parts Stolen . | . . . . . . . . . . . . . . . . . . . . . Parts Stripped . | . . . . . . . . . . . . . . . . . . . . . Power Chain Reactions 1 | . . . . . . . . . . . . . 1 . . . . . . . Alert | -11 -10 -10 -10 -9 -8 -8 -8 -8 -8 -8 -7 -7 -7 -7 -6 -6 -5 -5 -5 -5 ------- Run | Yrd Mat Min Exi Min Mat Gar Mat Gar Mat Gar Fac Was Fac Gar Fac Gar Fac Was Fac Ext Peak Influence 4560 | 10 200 85 . 84 133 2570 1282 4560 2223 2310 1343 397 323 1552 826 1168 613 236 1044 518 Initial 2223 | . 6 1 . . . 52 1252 508 2223 1444 1212 397 137 226 814 201 613 210 29 511 Average 853 | 2 65 13 . 20 43 1133 896 2329 2223 1923 1240 338 138 900 201 746 595 171 256 512 Maximum Alert Level 5 | . 1 . . . . 5 4 5 5 5 4 1 1 4 3 4 2 1 3 2 Low Security (%) 38 | 100 97 100 . 100 100 7 . . . . . 29 74 . 60 . . 30 40 . Level 1 13 | . 2 . . . . 13 . . . . . 70 25 16 33 16 . 69 45 . Level 2 5 | . . . . . . 11 . 1 . . . . . 18 . 21 100 . 8 100 Level 3 12 | . . . . . . 24 76 17 . . . . . 29 6 58 . . 6 . Level 4 10 | . . . . . . 15 23 17 . 17 100 . . 34 . 3 . . . . Level 5 19 | . . . . . . 28 . 63 100 82 . . . . . . . . . . High Security . | . . . . . . . . . . . . . . . . . . . . . Max Security . | . . . . . . . . . . . . . . . . . . . . . Squads Dispatched 51 | . 2 . . . 8 . . . . . 4 . 11 . 9 . 1 . 14 2 Investigation 11 | . 2 . . . 2 . . . . . . . 3 . 2 . . . . 2 Extermination 13 | . . . . . . . . . . . 2 . 6 . 3 . . . 2 . Reinforcement 19 | . . . . . 3 . . . . . 2 . 2 . 2 . . . 10 . Assault 3 | . . . . . . . . . . . . . . . . . 1 . 2 . Garrison 5 | . . . . . 3 . . . . . . . . . 2 . . . . . Intercept . | . . . . . . . . . . . . . . . . . . . . . Searches Triggered . | . . . . . . . . . . . . . . . . . . . . . Construction Impeded 2 | . . . . . . . . . . . . . 1 . . . . . 1 . Haulers Reinforced 6 | . . . . . . . . . . . 1 . 1 . 2 . . . 2 . Active Scanning Responses . | . . . . . . . . . . . . . . . . . . . . . Cargo Convoy Interrupts 1 | . . . . . . . . . . . . . 1 . . . . . . . Stealth | -11 -10 -10 -10 -9 -8 -8 -8 -8 -8 -8 -7 -7 -7 -7 -6 -6 -5 -5 -5 -5 --------- Run | Yrd Mat Min Exi Min Mat Gar Mat Gar Mat Gar Fac Was Fac Gar Fac Gar Fac Was Fac Ext Distress Signals 14 | . 3 . . . 4 . . 1 . 1 2 . 1 1 . . . . 1 . Communications Jammed 118 | . . . . . . . . . . . . . 29 . 13 . . . 76 . Distress Signals 114 | . . . . . . . . . . . . . 29 . 13 . . . 72 . Times Spotted 392 | . 23 3 . 5 17 29 2 41 . 26 14 4 38 49 24 31 2 5 74 5 Peak Tracking Total 12 | . 4 3 . 3 3 5 1 7 . 5 5 2 3 7 4 4 2 1 12 5 Tactical Retreats 22 | . . . . . 1 1 . . . 1 1 . 5 6 2 1 . . 4 . Traps | -11 -10 -10 -10 -9 -8 -8 -8 -8 -8 -8 -7 -7 -7 -7 -6 -6 -5 -5 -5 -5 ------- Run | Yrd Mat Min Exi Min Mat Gar Mat Gar Mat Gar Fac Was Fac Gar Fac Gar Fac Was Fac Ext Traps Triggered 55 | . . . . . . 17 . 11 . 2 2 . 2 6 1 7 1 . 6 . Indirectly 3 | . . . . . . . . . . . . . . . . . . . 3 . Trap Hack Attempts . | . . . . . . . . . . . . . . . . . . . . . Triggered . | . . . . . . . . . . . . . . . . . . . . . Disarmed . | . . . . . . . . . . . . . . . . . . . . . Reprogrammed . | . . . . . . . . . . . . . . . . . . . . . Reused 1 | . . . . . . . . 1 . . . . . . . . . . . . Traps Reconfigurated 5 | . . . . . . . . 5 . . . . . . . . . . . . Traps Extracted . | . . . . . . . . . . . . . . . . . . . . . Installed . | . . . . . . . . . . . . . . . . . . . . . Triggered 4 | . . . . . . . . 1 . . . . 2 1 . . . . . . Machines | -11 -10 -10 -10 -9 -8 -8 -8 -8 -8 -8 -7 -7 -7 -7 -6 -6 -5 -5 -5 -5 ---------- Run | Yrd Mat Min Exi Min Mat Gar Mat Gar Mat Gar Fac Was Fac Gar Fac Gar Fac Was Fac Ext Machines Disabled 58 | . . . . . . 6 1 7 . 4 5 . 4 4 4 5 . . 18 . Max in Single Turn 7 | . . . . . . 2 1 1 . 2 1 . 2 1 1 1 . . 7 . Garrison Access 1 | . . . . . . . . . . . . . . . . . . . 1 . Garrison Relay 21 | . . . . . . 6 . 5 . 2 . . . 4 . 4 . . . . Phase Generator 1 | . . . . . . . . . . . . . . 1 . . . . . . Machines Repaired . | . . . . . . . . . . . . . . . . . . . . . Machines Dismantled 2 | . . . . . . . . . . . . . . 2 . . . . . . Machines Sabotaged . | . . . . . . . . . . . . . . . . . . . . . Overloaded Fab Kills . | . . . . . . . . . . . . . . . . . . . . . Hacking | -11 -10 -10 -10 -9 -8 -8 -8 -8 -8 -8 -7 -7 -7 -7 -6 -6 -5 -5 -5 -5 --------- Run | Yrd Mat Min Exi Min Mat Gar Mat Gar Mat Gar Fac Was Fac Gar Fac Gar Fac Was Fac Ext Machines Accessed 55 | . 6 . 2 . 9 4 2 3 1 1 . . 8 4 5 2 . . 5 3 Terminals 40 | . 4 . . . 7 4 1 3 . 1 . . 5 4 3 2 . . 3 3 Fabricators 2 | . . . . . . . . . . . . . 2 . . . . . . . Repair Stations 1 | . . . . . . . . . . . . . . . . . . . 1 . Recycling Units 4 | . 2 . . . 1 . . . . . . . . . 1 . . . . . Scanalyzers . | . . . . . . . . . . . . . . . . . . . . . Garrison Access 6 | . . . . . 1 . 1 . 1 . . . 1 . 1 . . . 1 . Total Hacks 109 | . 16 . 2 . 18 9 3 5 1 2 . . 16 7 9 6 . . 9 6 Successful 38 | . 6 . 2 . 11 3 1 . 1 . . . 4 . 3 1 . . 5 1 Failed 70 | . 9 . . . 7 6 2 5 . 2 . . 12 7 6 5 . . 4 5 Catastrophic 22 | . 1 . . . 2 2 . 3 . . . . 4 3 1 2 . . 2 2 Database Lockouts 1 | . 1 . . . . . . . . . . . . . . . . . . . Manual 39 | . 13 . 1 . 12 1 2 . . . . . 6 . 1 . . . 1 2 Terminals 87 | . 14 . . . 16 9 1 5 . 2 . . 10 7 7 6 . . 4 6 Fabricators 5 | . . . . . . . . . . . . . 5 . . . . . . . Repair Stations 3 | . . . . . . . . . . . . . . . . . . . 3 . Recycling Units 4 | . 2 . . . 1 . . . . . . . . . 1 . . . . . Scanalyzers . | . . . . . . . . . . . . . . . . . . . . . Garrison Access 8 | . . . . . 1 . 2 . 1 . . . 1 . 1 . . . 2 . Terminal Hacks 22 | . 3 . 2 . 9 3 . . . . . . 1 . 1 1 . . 1 1 Record 1 | . . . 1 . . . . . . . . . . . . . . . . . Part Schematic 5 | . 3 . . . 2 . . . . . . . . . . . . . . . Prototype ID Bank 1 | . . . . . 1 . . . . . . . . . . . . . . . Open Door 4 | . . . . . . 1 . . . . . . . . . 1 . . 1 1 Emergency Access Points 1 | . . . . . . 1 . . . . . . . . . . . . . . Locate Traps 2 | . . . . . 1 . . . . . . . 1 . . . . . . . Hauler Manifests 2 | . . . . . 1 . . . . . . . . . 1 . . . . . Registered Components 1 | . . . . . 1 . . . . . . . . . . . . . . . Zone Layout 3 | . . . . . 3 . . . . . . . . . . . . . . . Garrison Registry 1 | . . . . . . 1 . . . . . . . . . . . . . . Derelict Proto ID Bank 1 | . . . 1 . . . . . . . . . . . . . . . . . Fabricator Hacks 1 | . . . . . . . . . . . . . 1 . . . . . . . Load Schematic 1 | . . . . . . . . . . . . . 1 . . . . . . . Repair Station Hacks 2 | . . . . . . . . . . . . . . . . . . . 2 . Scan Component 1 | . . . . . . . . . . . . . . . . . . . 1 . Repair 1 | . . . . . . . . . . . . . . . . . . . 1 . Recycling Unit Hacks . | . . . . . . . . . . . . . . . . . . . . . Scanalyzer . | . . . . . . . . . . . . . . . . . . . . . Garrison Access Hacks 7 | . . . . . 1 . 1 . 1 . . . 1 . 1 . . . 2 . Unlock Access 5 | . . . . . 1 . 1 . 1 . . . 1 . 1 . . . . . Seal Access 1 | . . . . . . . . . . . . . . . . . . . 1 . Coupler Status 1 | . . . . . . . . . . . . . . . . . . . 1 . Unauthorized Hacks 6 | . 3 . . . 1 . . . . . . . 1 . 1 . . . . . Terminals 1 | . 1 . . . . . . . . . . . . . . . . . . . Operators 1 | . 1 . . . . . . . . . . . . . . . . . . . Fabricators 1 | . . . . . . . . . . . . . 1 . . . . . . . Recompile 1 | . . . . . . . . . . . . . 1 . . . . . . . Repair Stations . | . . . . . . . . . . . . . . . . . . . . . Recycling Units 4 | . 2 . . . 1 . . . . . . . . . 1 . . . . . Tunnel 4 | . 2 . . . 1 . . . . . . . . . 1 . . . . . Scanalyzers . | . . . . . . . . . . . . . . . . . . . . . Garrison Access . | . . . . . . . . . . . . . . . . . . . . . Data Cores Recovered . | . . . . . . . . . . . . . . . . . . . . . Used . | . . . . . . . . . . . . . . . . . . . . . Hacking Detections 42 | . 4 . . . 6 3 1 3 . 1 . . 8 4 4 2 . . 4 2 Full Trace Events 11 | . 1 . . . . 3 . 2 . . . . 1 . 1 1 . . . 2 Feedback Events . | . . . . . . . . . . . . . . . . . . . . . Feedback Blocked . | . . . . . . . . . . . . . . . . . . . . . Robot Schematics Acquired . | . . . . . . . . . . . . . . . . . . . . . Robots Built . | . . . . . . . . . . . . . . . . . . . . . Authchips . | . . . . . . . . . . . . . . . . . . . . . Time . | . . . . . . . . . . . . . . . . . . . . . Total Robot Build Rating . | . . . . . . . . . . . . . . . . . . . . . Part Schematics Acquired 5 | . 3 . . . 2 . . . . . . . . . . . . . . . Parts Built . | . . . . . . . . . . . . . . . . . . . . . Authchips . | . . . . . . . . . . . . . . . . . . . . . Time . | . . . . . . . . . . . . . . . . . . . . . Total Part Build Rating . | . . . . . . . . . . . . . . . . . . . . . Parts Repaired . | . . . . . . . . . . . . . . . . . . . . . Time 56 | . . . . . . . . . . . . . . . . . . . 56 . Parts Recycled . | . . . . . . . . . . . . . . . . . . . . . Recycled Matter . | . . . . . . . . . . . . . . . . . . . . . Retrieved Matter . | . . . . . . . . . . . . . . . . . . . . . Retrieved Components . | . . . . . . . . . . . . . . . . . . . . . Parts Scanalyzed . | . . . . . . . . . . . . . . . . . . . . . Part Schematics Acquired . | . . . . . . . . . . . . . . . . . . . . . Parts Damaged . | . . . . . . . . . . . . . . . . . . . . . Bothacking | -11 -10 -10 -10 -9 -8 -8 -8 -8 -8 -8 -7 -7 -7 -7 -6 -6 -5 -5 -5 -5 ------------ Run | Yrd Mat Min Exi Min Mat Gar Mat Gar Mat Gar Fac Was Fac Gar Fac Gar Fac Was Fac Ext Used RIF Installer 6 | . . . . . . 1 . 1 . 1 . . . 1 . 2 . . . . Command Fork 1 | . . . . . . . . . . 1 . . . . . . . . . . Watcher Feeds 1 | . . . . . . . . . . . . . . 1 . . . . . . Alert ID Control 1 | . . . . . . . . 1 . . . . . . . . . . . . Autoassimilate 2 | . . . . . . . . . . . . . . . . 2 . . . . Robots Hacked 38 | . . . . . . . 1 4 . 3 1 4 6 2 4 4 2 6 1 . Non-combat 11 | . . . . . . . 1 . . . 1 . 5 . 2 . 1 . 1 . Combat 27 | . . . . . . . . 4 . 3 . 4 1 2 2 4 1 6 . . Robot Hacks Applied 52 | . . . . . . . 5 4 . 3 1 7 7 2 10 4 2 6 1 . find_chute 2 | . . . . . . . . . . . 1 . . . . . 1 . . . map_walls 2 | . . . . . . . . . . . . . 1 . 1 . . . . . map_earth 1 | . . . . . . . . . . . . . 1 . . . . . . . drop_inventory 3 | . . . . . . . . . . . . . 2 . . . . . 1 . purge_threat 11 | . . . . . . . 5 . . . . . . . 6 . . . . . map_route 1 | . . . . . . . . . . . . . 1 . . . . . . . ignore_targets 13 | . . . . . . . . . . . . 7 . . . . . 6 . . find_garrison 2 | . . . . . . . . . . . . . 1 . 1 . . . . . amplify_resonance 6 | . . . . . . . . 3 . . . . 1 1 . 1 . . . . disable_weapons 2 | . . . . . . . . . . 1 . . . . 1 . . . . . overwrite_iff 6 | . . . . . . . . 1 . 2 . . . . . 2 1 . . . formatsys_high 3 | . . . . . . . . . . . . . . 1 1 1 . . . . Relay Couplers Released 81 | . . . . . . 23 . 18 . 8 . . . 16 . 16 . . . . Machine Destruction 81 | . . . . . . 23 . 18 . 8 . . . 16 . 16 . . . . Attached 23 | . . . . . . . 2 2 . 3 . 1 3 1 5 3 2 . 1 . Fabnet Peak Effective % . | . . . . . . . . . . . . . . . . . . . . . Robots Rewired 4 | . . . . . . 2 . . . . . . . . . 2 . . . . Allies Hacked . | . . . . . . . . . . . . . . . . . . . . . Hacks Repelled . | . . . . . . . . . . . . . . . . . . . . . Allies | -11 -10 -10 -10 -9 -8 -8 -8 -8 -8 -8 -7 -7 -7 -7 -6 -6 -5 -5 -5 -5 -------- Run | Yrd Mat Min Exi Min Mat Gar Mat Gar Mat Gar Fac Was Fac Gar Fac Gar Fac Was Fac Ext Total Allies 21 | . . . . . . 2 . 1 . 3 . . . 4 1 5 1 . 3 1 Largest Group 3 | . . . . . . 2 . 1 . 2 . . . 2 1 2 . . 3 1 Highest-Rated Group 157 | . . . . . . 62 . 16 . 30 . . . 157 41 97 . . 93 31 Highest-Rated Ally 95 | . . . . . . 31 . 16 . 15 . . . 95 41 51 . . 31 31 Total Orders 11 | . . . . . . . . . . . . . . . . . . . 11 . EXPLORE 7 | . . . . . . . . . . . . . . . . . . . 7 . RETURN 4 | . . . . . . . . . . . . . . . . . . . 4 . Ally Attacks 86 | . . . . . . 1 . . . 1 . . . 33 5 33 1 . 12 . Total Damage 2100 | . . . . . . 23 . . . 29 . . . 837 242 728 55 . 186 . Kills 16 | . . . . . . . . . . . . . . 8 1 6 . . 1 . Allies Corrupted . | . . . . . . . . . . . . . . . . . . . . . Allies Melted . | . . . . . . . . . . . . . . . . . . . . . Intel | -11 -10 -10 -10 -9 -8 -8 -8 -8 -8 -8 -7 -7 -7 -7 -6 -6 -5 -5 -5 -5 ------- Run | Yrd Mat Min Exi Min Mat Gar Mat Gar Mat Gar Fac Was Fac Gar Fac Gar Fac Was Fac Ext Robot Analysis Total . | . . . . . . . . . . . . . . . . . . . . . Derelict Logs Recovered 2 | . . 1 . 1 . . . . . . . . . . . . . . . . Drone Launches 13 | . . . . . . . . . . . . . . . . . . . 13 . Drone Recoveries 8 | . . . . . . . . . . . . . . . . . . . 8 . Exploration | -11 -10 -10 -10 -9 -8 -8 -8 -8 -8 -8 -7 -7 -7 -7 -6 -6 -5 -5 -5 -5 ------------- Run | Yrd Mat Min Exi Min Mat Gar Mat Gar Mat Gar Fac Was Fac Gar Fac Gar Fac Was Fac Ext Turns Passed 33214 | 102 1658 1958 1399 1676 2105 3731 184 5749 59 1586 825 565 3073 1835 1580 1869 371 574 2284 31 Spaces Moved 11306 | 51 504 605 436 511 765 1370 66 2177 24 518 261 161 1082 548 513 592 96 156 812 58 Core 190 | 3 . . . . . . . . . . . . . . . . . . 129 58 Treads 11116 | 48 504 605 436 511 765 1370 66 2177 24 518 261 161 1082 548 513 592 96 156 683 . Legs . | . . . . . . . . . . . . . . . . . . . . . Wheels . | . . . . . . . . . . . . . . . . . . . . . Hover . | . . . . . . . . . . . . . . . . . . . . . Flight . | . . . . . . . . . . . . . . . . . . . . . Fastest Speed 50 | 50 160 320 320 320 236 236 240 240 242 242 242 240 160 240 240 240 240 240 50 50 Average Speed 251 | 153 287 320 320 320 236 238 240 240 242 247 247 242 239 240 240 247 331 257 209 50 Slowest Speed 400 | 160 320 320 320 320 240 240 240 242 242 325 325 320 240 240 240 320 400 400 320 50 Overloaded Moves . | . . . . . . . . . . . . . . . . . . . . . Propulsion Burnouts . | . . . . . . . . . . . . . . . . . . . . . Robots Hopped . | . . . . . . . . . . . . . . . . . . . . . Cave-ins Triggered . | . . . . . . . . . . . . . . . . . . . . . Exploration Rate (%) 52 | 4 68 99 77 82 71 98 10 93 4 61 12 86 36 92 17 68 7 75 38 11 Regions Visited 20 Branch Regions 4 Pre-discovered Areas 5 | . 2 . 1 . 1 . . . . . . . . . 1 . . . . . Known Exits Taken 6 | . . . 1 . 1 . 1 . 1 . . . 1 . 1 . . . . . Unknown Exits Taken 5 | 1 1 1 . 1 . . . . . . . . . . . . . . 1 . Scrap Searched 5 | . . 1 . 4 . . . . . . . . . . . . . . . . Spaces Dug 237 | . . 8 . 4 4 16 . 60 . 8 2 . 2 37 31 50 2 . 13 . Terrain Destroyed 853 | . 6 14 . 14 6 41 1 152 . 25 10 . 37 101 77 68 7 4 290 . Melee 24 | . . . . . . . . 23 . 1 . . . . . . . . . . Projectile 132 | . . . . . 6 . 1 34 . 3 8 . 9 4 28 6 7 4 22 . AOE 689 | . 6 14 . 14 . 41 . 95 . 21 . . 22 97 49 62 . . 268 . Terrain Rammed . | . . . . . . . . . . . . . . . . . . . . . Walls Destroyed . | . . . . . . . . . . . . . . . . . . . . . Machines Disabled . | . . . . . . . . . . . . . . . . . . . . . Actions | -11 -10 -10 -10 -9 -8 -8 -8 -8 -8 -8 -7 -7 -7 -7 -6 -6 -5 -5 -5 -5 --------- Run | Yrd Mat Min Exi Min Mat Gar Mat Gar Mat Gar Fac Was Fac Gar Fac Gar Fac Was Fac Ext Total 14411 | 66 619 629 444 542 979 1640 85 2493 24 675 343 266 1391 878 730 861 132 271 1283 60 Wait 834 | . 24 5 . . 80 63 1 14 . 35 3 19 134 117 56 90 6 5 182 . Move 11293 | 51 503 604 435 510 765 1369 65 2176 24 517 261 160 1082 547 513 591 96 155 811 58 Hop . | . . . . . . . . . . . . . . . . . . . . . Pick Up 227 | 5 18 8 4 9 21 16 1 23 . 3 4 4 24 23 5 21 1 11 26 . Fast Attach 121 | 7 5 . . 1 12 4 . 9 . 6 7 6 5 4 12 9 . 10 24 . Attach 120 | . . . . 1 5 8 2 4 . 1 4 4 3 6 13 11 8 6 44 . Detach 86 | . 4 . . . 3 1 1 2 . 2 2 4 5 2 10 7 3 13 27 . Swap 221 | . 3 2 . 3 13 20 5 35 . 15 7 7 21 30 27 20 1 1 11 . Drop 259 | . 5 7 5 9 36 18 . 36 . 5 3 14 17 21 13 11 1 18 40 . Fire 1069 | 3 55 2 . 8 42 106 9 137 . 61 49 48 99 100 79 89 16 52 114 . Melee 88 | . . . . . . 17 . 43 . 28 . . . . . . . . . . Ram 2 | . . . . . . . . . . . . . . . . . . . 2 . Kick . | . . . . . . . . . . . . . . . . . . . . . Crush 18 | . 2 1 . 1 2 . 1 . . 2 3 . 1 1 2 . . . 2 . Escape Stasis 52 | . . . . . . 18 . 12 . . . . . 10 . 12 . . . . Rewire 4 | . . . . . . . . 2 . . . . . . . . . . . 2 Trap . | . . . . . . . . . . . . . . . . . . . . . Miscellaneous 17 | . . . . . . . . . . . . . . 17 . . . . . . Route ------- -11/Scrapyard -10/Materials (discovered 3 exits: [*Mat x2] / [*Min]) -10/Mines (discovered 4 exits: [*Mat x2] / *Exi / [*Sub]) -10/Exiles (discovered 2 exits: *Min x2) -9/Mines -8/Materials (discovered 4 exits: *Fac x3 / Gar) -8/Garrison (discovered 3 exits: *Mat x3) -8/Materials -8/Garrison (discovered 4 exits: *Fac x3 / *Mat) -8/Materials -8/Garrison (discovered 2 exits: *Fac x2) -7/Factory -7/Waste -7/Factory -7/Garrison (discovered 2 exits: *Fac x2) -6/Factory (discovered 3 exits: [*Fac x2] / Gar) -6/Garrison (discovered 3 exits: [*Fac x3]) -5/Factory -5/Waste -5/Factory (discovered 2 exits: [*Upp] / *Ext) -5/Extension History --------- Turn | Location | Event 2 | -11/Scrapyard | Discovered new exit (range 16) 103 | -11/Scrapyard | Entered Materials 303 | -10/Materials | Build established: Mutant 310 | -10/Materials | Discovered new exit (range 4) 509 | -10/Materials | Discovered new exit (range 8) 1296 | -10/Materials | Discovered new exit (range 11) 1411 | -10/Materials | Central database locked down 1761 | -10/Materials | Entered Mines 1809 | -10/Mines | Assembled infested the area 1916 | -10/Mines | Discovered new exit (range 8) 2324 | -10/Mines | Received a Rocket Launcher from a helpful Derelict 3021 | -10/Mines | Discovered new exit (range 13) 3114 | -10/Mines | Discovered new exit (range 9) 3703 | -10/Mines | Discovered new exit (range 5) 3719 | -10/Mines | Entered Exiles 3720 | -10/Exiles | Identified exit to Mines 3799 | -10/Exiles | Met 8R-AWN 3851 | -10/Exiles | Met EX-HEX 3940 | -10/Exiles | Met EX-BIN 3985 | -10/Exiles | Aligned with FarCom system 3988 | -10/Exiles | Given EX-Vault access code 4065 | -10/Exiles | Opened EX-Vault 4142 | -10/Exiles | Warned to stay clear of 0b10 Research branches 4228 | -10/Exiles | Met EX-DEC 4244 | -10/Exiles | Learned location of Zion (-6) 4429 | -10/Exiles | Found Trap Reconfigurator 4462 | -10/Exiles | Found 0b10 Alert Chip 4466 | -10/Exiles | Found Superbattery 4731 | -10/Exiles | Visited The Gauntlet 5118 | -10/Exiles | Stole three prototypes: Superbattery, 0b10 Alert Chip, Trap Reconfigurator 5118 | -10/Exiles | Entered Mines 6568 | -9/Mines | Discovered new exit (range 12) 6794 | -9/Mines | Entered Materials 6794 | -8/Materials | Evolved 4 slots: Propulsion x2, Utility x2 6795 | -8/Materials | Identified exit to Factory 6819 | -8/Materials | Garrison activated, responded to threat 7084 | -8/Materials | Met 7R-MNS 7101 | -8/Materials | Build established: Scavenger-Mutant 7688 | -8/Materials | Build established: Mutant 7867 | -8/Materials | Discovered exit to Factory (range 16) 8851 | -8/Materials | Discovered exit to Factory (range 15) 8899 | -8/Materials | Identified exit to Garrison 8899 | -8/Materials | Entered Garrison 9043 | -8/Garrison | Triggered checkpoint 9075 | -8/Garrison | Garrison Relay disabled 9489 | -8/Garrison | Triggered checkpoint 9548 | -8/Garrison | Discovered new exit (range 9) 9627 | -8/Garrison | Triggered checkpoint 9681 | -8/Garrison | Garrison Relay disabled 9795 | -8/Garrison | Triggered checkpoint 9843 | -8/Garrison | Triggered checkpoint 9993 | -8/Garrison | Triggered checkpoint 10041 | -8/Garrison | Garrison Relay disabled 10089 | -8/Garrison | Discovered new exit (range 12) 10252 | -8/Garrison | Discovered new exit (range 10) 10353 | -8/Garrison | Triggered checkpoint 10529 | -8/Garrison | Garrison Relay disabled 10747 | -8/Garrison | Spotted B-75 Beast 10753 | -8/Garrison | Build established: Scavenger-Mutant 11127 | -8/Garrison | Triggered checkpoint 11643 | -8/Garrison | Spotted B-75 Beast 11737 | -8/Garrison | Destroyed B-75 Beast 11748 | -8/Garrison | Lost 4 parts (1p2n1u) 11885 | -8/Garrison | Build established: Mutant 11943 | -8/Garrison | Garrison Relay disabled 11943 | -8/Garrison | Garrison Relay disabled 12339 | -8/Garrison | Installed Relay Interface Framework 12493 | -8/Garrison | Discovered new exit (range 29) 12493 | -8/Garrison | Discovered new exit (range 58) 12493 | -8/Garrison | Discovered new exit (range 85) 12630 | -8/Garrison | Entered Materials 12651 | -8/Materials | Build established: Bothacker-Mutant 12807 | -8/Materials | Identified exit to Garrison 12814 | -8/Materials | Entered Garrison 12890 | -8/Garrison | Triggered checkpoint 12914 | -8/Garrison | Destroyed 8 combat bots 12955 | -8/Garrison | Build established: Mutant 13014 | -8/Garrison | Triggered checkpoint 13043 | -8/Garrison | Garrison Relay disabled 13107 | -8/Garrison | Discovered exit to Factory (range 12) 13286 | -8/Garrison | Triggered checkpoint 13357 | -8/Garrison | Build established: Bothacker-Mutant 13384 | -8/Garrison | Triggered checkpoint 13498 | -8/Garrison | Discovered exit to Factory (range 14) 13578 | -8/Garrison | Triggered checkpoint 13616 | -8/Garrison | Garrison Relay disabled 13709 | -8/Garrison | Garrison Relay disabled 13940 | -8/Garrison | Triggered checkpoint 14046 | -8/Garrison | Garrison Relay disabled 14224 | -8/Garrison | Triggered checkpoint 14326 | -8/Garrison | Triggered checkpoint 14334 | -8/Garrison | Garrison Relay disabled 14436 | -8/Garrison | Triggered checkpoint 14463 | -8/Garrison | Discovered exit to Factory (range 14) 15025 | -8/Garrison | Discovered new exit (range 5) 16582 | -8/Garrison | Triggered checkpoint 17556 | -8/Garrison | Found Imp. Powered Armor 18104 | -8/Garrison | Expanded RIF knowledge: Alert ID Control 18563 | -8/Garrison | Entered Materials 18622 | -8/Materials | Identified exit to Garrison 18622 | -8/Materials | Entered Garrison 18700 | -8/Garrison | Triggered checkpoint 18744 | -8/Garrison | Garrison Relay disabled 18813 | -8/Garrison | Expanded RIF knowledge: Command Fork 18922 | -8/Garrison | Triggered checkpoint 19018 | -8/Garrison | Triggered checkpoint 19096 | -8/Garrison | Triggered checkpoint 19253 | -8/Garrison | Discovered exit to Factory (range 11) 19466 | -8/Garrison | Triggered checkpoint 19601 | -8/Garrison | Garrison Relay disabled 19989 | -8/Garrison | Discovered exit to Factory (range 9) 20019 | -8/Garrison | Core integrity fell below 50% 20072 | -8/Garrison | Triggered checkpoint 20208 | -8/Garrison | Entered Factory 20208 | -7/Factory | Evolved 2 slots: Power x1, Utility x1 20210 | -7/Factory | FarCom data flow suspended 21033 | -7/Factory | Sucked down chute 21033 | -7/Factory | Entered Waste 21048 | -7/Waste | EMP discharged 21082 | -7/Waste | Spotted C-40 Crusher 21104 | -7/Waste | Spotted C-40 Crusher 21144 | -7/Waste | Spotted C-40 Crusher 21148 | -7/Waste | EMP discharged 21148 | -7/Waste | System corruption reached 10% 21158 | -7/Waste | Spotted C-40 Crusher 21167 | -7/Waste | Spotted C-40 Crusher 21189 | -7/Waste | Destroyed C-40 Crusher 21196 | -7/Waste | Spotted C-40 Crusher 21213 | -7/Waste | Found Damper Plating 21248 | -7/Waste | EMP discharged 21252 | -7/Waste | Destroyed C-40 Crusher 21348 | -7/Waste | EMP discharged 21380 | -7/Waste | Destroyed C-40 Crusher 21410 | -7/Waste | Destroyed C-40 Crusher 21448 | -7/Waste | EMP discharged 21548 | -7/Waste | EMP discharged 21569 | -7/Waste | Discovered new exit (range 11) 21598 | -7/Waste | Entered Factory 22286 | -7/Factory | Cargo convoy interrupted 24106 | -7/Factory | Build established: Hauler-Mutant 24671 | -7/Factory | Identified exit to Garrison 24671 | -7/Factory | Entered Garrison 24697 | -7/Garrison | Triggered checkpoint 24717 | -7/Garrison | Found embedded Infiltrators 24791 | -7/Garrison | Garrison Relay disabled 24954 | -7/Garrison | Phase Generator disabled 24998 | -7/Garrison | Triggered checkpoint 25069 | -7/Garrison | Triggered checkpoint 25131 | -7/Garrison | Lost 5 parts (2p1n1u1w) 25209 | -7/Garrison | Discovered new exit (range 8) 25501 | -7/Garrison | Triggered checkpoint 25727 | -7/Garrison | Triggered checkpoint 25807 | -7/Garrison | Expanded RIF knowledge: Watcher Feeds 25842 | -7/Garrison | Garrison Relay disabled 25934 | -7/Garrison | Rescued a captive Derelict 25957 | -7/Garrison | Triggered checkpoint 26157 | -7/Garrison | Build established: Bothacker-Mutant 26215 | -7/Garrison | Triggered checkpoint 26273 | -7/Garrison | Garrison Relay disabled 26373 | -7/Garrison | Triggered checkpoint 26395 | -7/Garrison | Discovered new exit (range 15) 26506 | -7/Garrison | Entered Factory 26506 | -6/Factory | Evolved 2 slots: Utility x2 26905 | -6/Factory | Build established: Hauler-Mutant 27268 | -6/Factory | Discovered new exit (range 14) 27552 | -6/Factory | Discovered new exit (range 20) 28086 | -6/Factory | Identified exit to Garrison 28086 | -6/Factory | Entered Garrison 28093 | -6/Garrison | Lost 3 parts (2n1u) 28172 | -6/Garrison | Garrison Relay disabled 28188 | -6/Garrison | Triggered checkpoint 28424 | -6/Garrison | Triggered checkpoint 28535 | -6/Garrison | Spotted B-75 Beast 28539 | -6/Garrison | Triggered checkpoint 28596 | -6/Garrison | Destroyed B-75 Beast 28620 | -6/Garrison | Lost 5 parts (1p4u) 28759 | -6/Garrison | Discovered new exit (range 8) 28780 | -6/Garrison | Triggered checkpoint 28832 | -6/Garrison | Garrison Relay disabled 28954 | -6/Garrison | Triggered checkpoint 29072 | -6/Garrison | Discovered new exit (range 12) 29136 | -6/Garrison | Build established: Bothacker-Mutant 29206 | -6/Garrison | Garrison Relay disabled 29326 | -6/Garrison | Expanded RIF knowledge: Autoassimilate 29513 | -6/Garrison | Discovered new exit (range 10) 29566 | -6/Garrison | Triggered checkpoint 29623 | -6/Garrison | Build established: Botlord-Mutant 29624 | -6/Garrison | Triggered checkpoint 29658 | -6/Garrison | Garrison Relay disabled 29737 | -6/Garrison | Lost 3 parts (1p2u) 29787 | -6/Garrison | Expanded RIF knowledge: Autoassimilate 29955 | -6/Garrison | Entered Factory 29955 | -5/Factory | Evolved 2 slots: Utility x2 30007 | -5/Factory | Spotted B-75 Beast 30255 | -5/Factory | First assault squad dispatched 30326 | -5/Factory | Sucked down chute 30326 | -5/Factory | Entered Waste 30341 | -5/Waste | EMP discharged 30350 | -5/Waste | Spotted C-40 Crusher 30352 | -5/Waste | Spotted C-40 Crusher 30354 | -5/Waste | Spotted C-40 Crusher 30361 | -5/Waste | Spotted C-40 Crusher 30406 | -5/Waste | Spotted C-40 Crusher 30421 | -5/Waste | Destroyed C-40 Crusher 30441 | -5/Waste | EMP discharged 30441 | -5/Waste | System corruption reached 10% 30456 | -5/Waste | Spotted C-40 Crusher 30492 | -5/Waste | Found Unknown Protection 30501 | -5/Waste | Identified Damper Plating 30510 | -5/Waste | Destroyed C-40 Crusher 30541 | -5/Waste | EMP discharged 30570 | -5/Waste | Destroyed C-40 Crusher 30641 | -5/Waste | EMP discharged 30645 | -5/Waste | Destroyed C-40 Crusher 30741 | -5/Waste | EMP discharged 30750 | -5/Waste | Destroyed C-40 Crusher 30805 | -5/Waste | Destroyed C-40 Crusher 30807 | -5/Waste | Build established: Bothacker-Mutant 30841 | -5/Waste | EMP discharged 30876 | -5/Waste | Discovered new exit (range 11) 30900 | -5/Waste | Entered Factory 31111 | -5/Factory | Build established: Scavenger-Mutant 31382 | -5/Factory | Lost 4 parts (1p3u) 31393 | -5/Factory | Found Unknown Device 31393 | -5/Factory | Identified Launcher Loader 31601 | -5/Factory | Discovered new exit (range 28) 31616 | -5/Factory | Found Prototype Launcher 31616 | -5/Factory | Identified Tesla Bomb Launcher 31639 | -5/Factory | Build established: Hauler-Mutant 32146 | -5/Factory | Destroyed 7 combat bots 33000 | -5/Factory | First assault squad dispatched 33115 | -5/Factory | Released all parts (11) 33117 | -5/Factory | Core integrity fell below 50% 33146 | -5/Factory | Allied Derelicts emerged from ambush trap array 33178 | -5/Factory | Core integrity fell below 20% 33182 | -5/Factory | Discovered new exit (range 6) 33184 | -5/Factory | Entered Extension 33191 | -5/Extension | Lost 3 allies 33211 | -5/Extension | Rescued a captive Derelict 33215 | -5/Extension | Destroyed by G-50 Soldier with Heavy Laser Last Messages --------------- Sealed Blast Doors opened. 33182_ EXIT=FOUND LOCATION=UNKNOWN GOAL=ESCAPE 33194_ System corrupted: Heat flow error (+241). 33199_ G-50 Soldier springs to life. 33201_ Attempting to rewire 7W-HMS(b). 33210_ Connecting with Door Terminal... 33210_ Current location identified: Extension >>Open(Door) Sealed Heavy Doors opened. 33211_ OO-N28(g): "Free at last!" 33211_ Connecting with Terminal... 33211_ ALERT: Suspicious activity at Terminal E003. Dispatching Investigation squad. 33211_ Critical hit (Burn: +37). 33212_ System corrupted: Component data lost. 33215_ Connecting with Door Terminal... 33215_ ALERT: Suspicious activity at Terminal E009. Dispatching Investigation squad. Map ----- +----------------------------------------------------+ | | | | | | | | | | | | | | | | | | | | | | | | | | | | | | | ???????????????????????????????????????????????? | | ???????????????????????????????????????????????? | | ???????????????????????????????????????????????? | | ???????????????????????????????????????????????? | | ???????????????????????????????????????????????? | | ??????###################??????????????????????? | | ??????# + #??????????????????????? | | ??????# ] # u######?????????????????? | | ??????# * ]#gg ???????????????? | | ??????# ] + g ####???????????????????? | | ??????# #### @#??????????????????????? | | ??????# ] #?##g##### #??????????????????????? | | ?????####+###### #?#T #??????????????????????? | | ?????# T #?##"#??????????????????????? | | ?????# ######### #???????????????????????????? | | ?????# #???????## ##???????????????????????????? | | ?????# #????????# T#???????????????????????????? | | ?????# #????????# ##???????????????????????????? | | ?????# #????????# #????????????????????????????? | | ?????# #????????###????????????????????????????? | | ?????# #???????????????????????????????????????? | | ?????# #???????????????????????????????????????? | | ?????# #???????????????????????????????????????? | | ?????# #???????????????????????????????????????? | | ?????# #???????????????????????????????????????? | | ?????# #???????????????????????????????????????? | | ?????# #???????????????????????????????????????? | | ?????# #???????????????????????????????????????? | | ?????# #???????????????????????????????????????? | | ?????# #???????????????????????????????????????? | | ?????# #???????????????????????????????????????? | | ?????# #???????????????????????????????????????? | | ?????# #???????????????????????????????????????? | | ?????# #???????????????????????????????????????? | | ?##### #####???????????????????????????????????? | +----------------------------------------------------+ Best States ------------- Heat Dissipation 121 Coolant Potential 65 Energy Generation 37 Energy Capacity 550 Matter Stores 300 Matter Capacity 300 Sight Range 16 Terrain Scan Density 10 Jamming Range 14 EM Shielding 2 Armor Coverage 3200 Resistance: KI 30 Resistance: EX 25 Resistance: EM 90 Weapon Cycling 20 Evasion (%) 50 Target Analysis 6 Recoil Reduction 4 Particle Charging 20 Relay Coupler Types 2 Relay Coupler Value 40 Authchip Count 1 Item Schematics ----------------- Hcp. Storage Unit | -10/Materials | Hacked Lrg. Storage Unit | -10/Materials | Hacked Huge Storage Unit | -10/Materials | Hacked Carbon-fiber Leg | -8/Materials | Hacked Cargo Storage Unit | -8/Materials | Hacked Robot Schematics ------------------ None Fabricated ------------ Nothing Alien Tech Used ----------------- None Achievements -------------- Can't Touch This Turtlemind Challenges ------------ None Game ------ Seed HoverSuspensionTerrabomb Manual? 0 Play Time 03:18:35 Cumulative 118.4 hours Start 2024.04.22 @ 22:29:15 End 2024.04.25 @ 20:15:23 Sessions 22 Manual Loads 0 Difficulty Rogue Special Mode None Game No. 67 Rogue 67 Adventurer 0 Explorer 0 Win Type - Total 4 Types 2/0/0/1/0/0/0/1/0 Lore% 78 Gallery% 71 Achievement% 60 Wizard Run 0 Options --------- Layout 0 ASCII 0 Keyboard 1 Movement Numpad Keybinds 0 Fullscreen 1 Font 18/SmallcapsGlow Map View 76x50 Zoom Use 0% Tactical HUD 1 Map Filters NONE Filters NONE Steam 1 RUN: 39b33652-473f-431d-8527-b4c1ec956907